[Event "*** Titled Tuesday Blitz"]
[Site "Chess.com"]
[Date "2021.04.20"]
[Round "3"]
[White "anon481216"]
[Black "GoltsevDmitry2000"]
[Result "0-1"]
[WhiteElo "2543"]
[BlackElo "2732"]
[TimeControl "180+1"]
[EndTime "10:24:15 PDT"]
[Termination "GoltsevDmitry2000 won by resignation"]

1. d4 {[%clk 0:03:00.9]} 1... Nf6 {[%clk 0:02:59.8]} 2. c4 {[%clk 0:03:01.3]}
2... e6 {[%clk 0:03:00.1]} 3. g3 {[%clk 0:03:01.8]} 3... Bb4+ {[%clk 0:03:00.2]}
4. Bd2 {[%clk 0:03:00.1]} 4... Qe7 {[%clk 0:02:59.9]} 5. Nf3 {[%clk 0:02:59.8]}
5... d5 {[%clk 0:02:59.9]} 6. Bg2 {[%clk 0:02:55.2]} 6... c6 {[%clk 0:02:57.8]}
7. Qc2 {[%clk 0:02:53.2]} 7... Ne4 {[%clk 0:02:57.1]} 8. O-O {[%clk 0:02:52.4]}
8... Bd6 {[%clk 0:02:56]} 9. Nc3 {[%clk 0:02:46.3]} 9... f5 {[%clk 0:02:54.3]}
10. Bf4 {[%clk 0:02:35.2]} 10... Nd7 {[%clk 0:02:52.5]} 11. c5 {[%clk
0:02:06.4]} 11... Bxf4 {[%clk 0:02:50.2]} 12. gxf4 {[%clk 0:02:06.1]} 12... O-O
{[%clk 0:02:48.3]} 13. e3 {[%clk 0:02:05.7]} 13... h6 {[%clk 0:02:43.3]} 14. Kh1
{[%clk 0:01:54.7]} 14... g5 {[%clk 0:02:43]} 15. Ne5 {[%clk 0:01:44.1]} 15...
Nxe5 {[%clk 0:02:38]} 16. fxe5 {[%clk 0:01:44.2]} 16... Nxc3 {[%clk 0:02:37.8]}
17. bxc3 {[%clk 0:01:42.2]} 17... f4 {[%clk 0:02:36]} 18. Qg6+ {[%clk
0:01:31.4]} 18... Qg7 {[%clk 0:02:34.9]} 19. Qxg7+ {[%clk 0:01:30.9]} 19... Kxg7
{[%clk 0:02:34.3]} 20. Bf3 {[%clk 0:01:24.7]} 20... b6 {[%clk 0:02:22.2]} 21.
cxb6 {[%clk 0:01:16.4]} 21... axb6 {[%clk 0:02:23.1]} 22. a4 {[%clk 0:01:16.7]}
22... Ba6 {[%clk 0:02:21.1]} 23. Rfb1 {[%clk 0:01:04]} 23... fxe3 {[%clk
0:02:20.1]} 24. Bg4 {[%clk 0:01:04.3]} 24... exf2 {[%clk 0:02:17.6]} 0-1

[Event "*** Titled Tuesday Blitz"]
[Site "Chess.com"]
[Date "2021.04.20"]
[Round "3"]
[White "NikolaGry"]
[Black "CrushingKings"]
[Result "1-0"]
[WhiteElo "2713"]
[BlackElo "2493"]
[TimeControl "180+1"]
[EndTime "10:24:20 PDT"]
[Termination "NikolaGry won by resignation"]

1. b3 {[%clk 0:03:00.9]} 1... d6 {[%clk 0:02:59.4]} 2. Bb2 {[%clk 0:03:00.2]}
2... Nd7 {[%clk 0:03:00.3]} 3. e3 {[%clk 0:03:00.5]} 3... Ngf6 {[%clk
0:03:00.8]} 4. Nf3 {[%clk 0:03:00.5]} 4... g6 {[%clk 0:03:01.4]} 5. c4 {[%clk
0:03:00.6]} 5... Bg7 {[%clk 0:03:01.9]} 6. Be2 {[%clk 0:03:01]} 6... O-O {[%clk
0:03:02.6]} 7. O-O {[%clk 0:03:01.2]} 7... c5 {[%clk 0:03:03.3]} 8. d4 {[%clk
0:03:00.5]} 8... Rb8 {[%clk 0:03:04]} 9. Nc3 {[%clk 0:03:00.3]} 9... a6 {[%clk
0:03:04.6]} 10. Rc1 {[%clk 0:02:57.1]} 10... Ne8 {[%clk 0:03:04]} 11. Qd2 {[%clk
0:02:54.2]} 11... Nc7 {[%clk 0:03:04.5]} 12. a4 {[%clk 0:02:53.1]} 12... b6
{[%clk 0:03:04.3]} 13. Rfe1 {[%clk 0:02:46.9]} 13... Bb7 {[%clk 0:03:04.8]} 14.
d5 {[%clk 0:02:44.6]} 14... Bc8 {[%clk 0:03:05.4]} 15. Ne4 {[%clk 0:02:40.4]}
15... Nf6 {[%clk 0:03:03]} 16. Ng3 {[%clk 0:02:34.5]} 16... Bd7 {[%clk
0:03:02.2]} 17. e4 {[%clk 0:02:31.9]} 17... b5 {[%clk 0:03:01.2]} 18. axb5
{[%clk 0:02:31]} 18... axb5 {[%clk 0:03:01.1]} 19. e5 {[%clk 0:02:31.2]} 19...
Nfe8 {[%clk 0:02:58.3]} 20. h3 {[%clk 0:02:23]} 20... bxc4 {[%clk 0:02:58]} 21.
bxc4 {[%clk 0:02:21]} 21... Na6 {[%clk 0:02:42.3]} 22. Bf1 {[%clk 0:02:14.9]}
22... Qb6 {[%clk 0:02:35.3]} 23. Bc3 {[%clk 0:02:11.3]} 23... Nb4 {[%clk
0:02:32.7]} 24. Ra1 {[%clk 0:02:04.2]} 24... Nc7 {[%clk 0:02:06.5]} 25. exd6
{[%clk 0:02:02.7]} 25... Bxc3 {[%clk 0:02:03.1]} 26. Qxc3 {[%clk 0:02:00.5]}
26... exd6 {[%clk 0:02:03.3]} 27. Re7 {[%clk 0:01:54.3]} 27... Rbd8 {[%clk
0:01:58.1]} 28. Ne4 {[%clk 0:01:52.9]} 28... Ne8 {[%clk 0:01:41.8]} 29. Rxe8
{[%clk 0:01:48.2]} 29... Rfxe8 {[%clk 0:01:42.7]} 30. Nf6+ {[%clk 0:01:47.3]}
30... Kf8 {[%clk 0:01:43.4]} 31. Nxh7+ {[%clk 0:01:45.1]} 31... Kg8 {[%clk
0:01:42.4]} 32. Nf6+ {[%clk 0:01:45.1]} 32... Kf8 {[%clk 0:01:42.8]} 33. Nxd7+
{[%clk 0:01:41.4]} 33... Rxd7 {[%clk 0:01:43.7]} 34. Qh8+ {[%clk 0:01:40.6]}
34... Ke7 {[%clk 0:01:43.8]} 35. Re1+ {[%clk 0:01:39.9]} 1-0

[Event "*** Titled Tuesday Blitz"]
[Site "Chess.com"]
[Date "2021.04.20"]
[Round "3"]
[White "zubridis"]
[Black "GoValya"]
[Result "1-0"]
[WhiteElo "2526"]
[BlackElo "2276"]
[TimeControl "180+1"]
[EndTime "10:24:20 PDT"]
[Termination "zubridis won by resignation"]

1. e4 {[%clk 0:03:00.9]} 1... g6 {[%clk 0:02:58.6]} 2. d4 {[%clk 0:02:59]} 2...
Bg7 {[%clk 0:02:58.4]} 3. Nc3 {[%clk 0:02:58.6]} 3... c5 {[%clk 0:02:56.3]} 4.
dxc5 {[%clk 0:02:50.1]} 4... Nc6 {[%clk 0:02:53.2]} 5. Be3 {[%clk 0:02:42.4]}
5... a6 {[%clk 0:02:43.6]} 6. Qd2 {[%clk 0:02:39.5]} 6... e6 {[%clk 0:02:28.9]}
7. Na4 {[%clk 0:02:21]} 7... Nge7 {[%clk 0:02:17.2]} 8. Nb6 {[%clk 0:02:19.9]}
8... Rb8 {[%clk 0:02:17.1]} 9. c3 {[%clk 0:02:15.7]} 9... O-O {[%clk 0:02:09.6]}
10. Nf3 {[%clk 0:02:14.5]} 10... f5 {[%clk 0:02:09.3]} 11. Bd3 {[%clk
0:02:04.7]} 11... d5 {[%clk 0:01:56.2]} 12. cxd6 {[%clk 0:02:01.7]} 12... Qxd6
{[%clk 0:01:56.1]} 13. Bf4 {[%clk 0:01:55.1]} 13... e5 {[%clk 0:01:55]} 14. Bc4+
{[%clk 0:01:53.6]} 14... Qe6 {[%clk 0:01:40.3]} 15. Bg5 {[%clk 0:01:32.9]} 15...
Qxc4 {[%clk 0:01:23.5]} 16. Nxc4 {[%clk 0:01:30.9]} 16... fxe4 {[%clk
0:01:24.1]} 17. Nfxe5 {[%clk 0:01:28.5]} 1-0

[Event "*** Titled Tuesday Blitz"]
[Site "Chess.com"]
[Date "2021.04.20"]
[Round "3"]
[White "InitiatingASC"]
[Black "FarOut1364"]
[Result "0-1"]
[WhiteElo "2428"]
[BlackElo "2726"]
[TimeControl "180+1"]
[EndTime "10:24:33 PDT"]
[Termination "FarOut1364 won by resignation"]

1. d4 {[%clk 0:03:00.9]} 1... e6 {[%clk 0:02:59.9]} 2. c4 {[%clk 0:03:00.7]}
2... Nf6 {[%clk 0:02:59.6]} 3. Nc3 {[%clk 0:03:00.2]} 3... d5 {[%clk 0:02:59.2]}
4. e3 {[%clk 0:03:00.4]} 4... a6 {[%clk 0:02:57.6]} 5. Nf3 {[%clk 0:03:00.3]}
5... dxc4 {[%clk 0:02:55.7]} 6. Bxc4 {[%clk 0:03:00.3]} 6... b5 {[%clk
0:02:56.6]} 7. Bd3 {[%clk 0:03:00.8]} 7... Bb7 {[%clk 0:02:56.9]} 8. O-O {[%clk
0:03:00.9]} 8... Nbd7 {[%clk 0:02:57.2]} 9. a3 {[%clk 0:03:01.1]} 9... c5 {[%clk
0:02:57.6]} 10. e4 {[%clk 0:02:53.7]} 10... cxd4 {[%clk 0:02:56.7]} 11. Nxd4
{[%clk 0:02:52.8]} 11... Ne5 {[%clk 0:02:56.7]} 12. Bc2 {[%clk 0:02:50.6]} 12...
Bc5 {[%clk 0:02:53.5]} 13. Nf3 {[%clk 0:02:30.6]} 13... Qxd1 {[%clk 0:02:46.5]}
14. Rxd1 {[%clk 0:02:28.7]} 14... Nfg4 {[%clk 0:02:28.6]} 15. Nxe5 {[%clk
0:02:07.1]} 15... Nxe5 {[%clk 0:02:28.4]} 16. h3 {[%clk 0:01:50.4]} 16... Rc8
{[%clk 0:02:18.3]} 17. Bb3 {[%clk 0:01:42.3]} 17... Ke7 {[%clk 0:02:13]} 18. Bf4
{[%clk 0:01:42.3]} 18... f6 {[%clk 0:02:12.8]} 19. Bxe5 {[%clk 0:01:31.8]} 19...
fxe5 {[%clk 0:02:12.5]} 20. Rac1 {[%clk 0:01:28.6]} 20... Bd4 {[%clk 0:02:12.5]}
21. Kf1 {[%clk 0:01:17.7]} 21... Rhf8 {[%clk 0:02:10.6]} 22. f3 {[%clk
0:01:14.5]} 22... Bxc3 {[%clk 0:02:09.2]} 23. bxc3 {[%clk 0:01:10.2]} 23... Bxe4
{[%clk 0:02:06.9]} 24. c4 {[%clk 0:01:04.3]} 24... Bxf3 {[%clk 0:02:05.2]} 25.
gxf3 {[%clk 0:00:56]} 25... Rxf3+ {[%clk 0:02:05.6]} 26. Kg2 {[%clk 0:00:56.6]}
26... Rxb3 {[%clk 0:02:05.7]} 27. cxb5 {[%clk 0:00:57.5]} 27... Rxc1 {[%clk
0:02:05.1]} 28. Rxc1 {[%clk 0:00:57.7]} 28... axb5 {[%clk 0:02:05.6]} 29. Rc7+
{[%clk 0:00:57.5]} 29... Kf6 {[%clk 0:02:06.1]} 30. Rb7 {[%clk 0:00:57.8]} 30...
h5 {[%clk 0:02:04.9]} 31. Kf2 {[%clk 0:00:56.7]} 31... Rxa3 {[%clk 0:02:03.4]}
32. Rxb5 {[%clk 0:00:56.3]} 32... Rxh3 {[%clk 0:02:03.9]} 0-1

[Event "*** Titled Tuesday Blitz"]
[Site "Chess.com"]
[Date "2021.04.20"]
[Round "3"]
[White "Nikolaj_6"]
[Black "DeTimmerman"]
[Result "0-1"]
[WhiteElo "2624"]
[BlackElo "2823"]
[TimeControl "180+1"]
[EndTime "10:24:36 PDT"]
[Termination "DeTimmerman won by resignation"]

1. e4 {[%clk 0:02:53.7]} 1... e5 {[%clk 0:03:00]} 2. Nf3 {[%clk 0:02:53.3]} 2...
Nc6 {[%clk 0:02:58.9]} 3. Bb5 {[%clk 0:02:53.6]} 3... f5 {[%clk 0:02:58.5]} 4.
Nc3 {[%clk 0:02:51.5]} 4... fxe4 {[%clk 0:02:57.1]} 5. Nxe4 {[%clk 0:02:52.4]}
5... d5 {[%clk 0:02:57.6]} 6. Nxe5 {[%clk 0:02:52.3]} 6... dxe4 {[%clk
0:02:58.5]} 7. Nxc6 {[%clk 0:02:51.1]} 7... Qg5 {[%clk 0:02:58.9]} 8. Qe2 {[%clk
0:02:50]} 8... Nf6 {[%clk 0:02:59.3]} 9. Ne5+ {[%clk 0:02:34.7]} 9... c6 {[%clk
0:02:58.1]} 10. f4 {[%clk 0:02:34.9]} 10... Qxf4 {[%clk 0:02:57.9]} 11. d4
{[%clk 0:02:34.3]} 11... Qh4+ {[%clk 0:02:58.5]} 12. g3 {[%clk 0:02:34.6]} 12...
Qh3 {[%clk 0:02:59.1]} 13. Bc4 {[%clk 0:02:34.6]} 13... Be6 {[%clk 0:02:59.8]}
14. Bf4 {[%clk 0:02:29]} 14... O-O-O {[%clk 0:02:59]} 15. O-O-O {[%clk
0:02:26.9]} 15... Bd6 {[%clk 0:02:58.9]} 16. Rhf1 {[%clk 0:02:20.7]} 16... Rhf8
{[%clk 0:02:57]} 17. Kb1 {[%clk 0:02:00]} 17... Bc7 {[%clk 0:02:40.4]} 18. g4
{[%clk 0:01:49.3]} 18... Nd5 {[%clk 0:02:29.3]} 19. Qxe4 {[%clk 0:01:14.9]}
19... Bxg4 {[%clk 0:02:12.5]} 20. Nxg4 {[%clk 0:01:03.2]} 20... Qxg4 {[%clk
0:02:13.4]} 21. h3 {[%clk 0:00:41.6]} 21... Rxf4 {[%clk 0:02:09]} 22. Qxd5
{[%clk 0:00:34.4]} 22... Qxd1+ {[%clk 0:02:05.9]} 23. Rxd1 {[%clk 0:00:33.7]}
23... cxd5 {[%clk 0:02:06.8]} 0-1

[Event "*** Titled Tuesday Blitz"]
[Site "Chess.com"]
[Date "2021.04.20"]
[Round "3"]
[White "RamyresCoelho"]
[Black "Shahaliyev"]
[Result "0-1"]
[WhiteElo "2221"]
[BlackElo "2686"]
[TimeControl "180+1"]
[EndTime "10:24:36 PDT"]
[Termination "Shahaliyev won by resignation"]

1. e4 {[%clk 0:03:00.5]} 1... d6 {[%clk 0:02:58.8]} 2. d4 {[%clk 0:02:58]} 2...
Nf6 {[%clk 0:02:59.1]} 3. Nc3 {[%clk 0:02:58.9]} 3... e5 {[%clk 0:02:59]} 4. f3
{[%clk 0:02:59.8]} 4... exd4 {[%clk 0:02:59]} 5. Qxd4 {[%clk 0:02:59.8]} 5...
Nc6 {[%clk 0:02:59.3]} 6. Bb5 {[%clk 0:02:59.7]} 6... Bd7 {[%clk 0:02:59.2]} 7.
Bxc6 {[%clk 0:02:57.8]} 7... Bxc6 {[%clk 0:03:00.1]} 8. Be3 {[%clk 0:02:58]}
8... Be7 {[%clk 0:02:59.6]} 9. O-O-O {[%clk 0:02:58.1]} 9... O-O {[%clk
0:03:00.2]} 10. g4 {[%clk 0:02:58.4]} 10... b5 {[%clk 0:02:59.8]} 11. g5 {[%clk
0:02:54.2]} 11... Nh5 {[%clk 0:02:55.3]} 12. Nd5 {[%clk 0:02:52.1]} 12... Bxg5
{[%clk 0:02:52.1]} 13. f4 {[%clk 0:02:41.1]} 13... Bxd5 {[%clk 0:02:39.1]} 14.
fxg5 {[%clk 0:02:35.3]} 14... Bc6 {[%clk 0:02:32.8]} 15. Nf3 {[%clk 0:02:33.3]}
15... Qe7 {[%clk 0:02:27.1]} 16. Nd2 {[%clk 0:02:27]} 16... Rfe8 {[%clk
0:02:21.9]} 17. Rde1 {[%clk 0:02:05.2]} 17... Qe6 {[%clk 0:02:12.7]} 18. Kb1
{[%clk 0:02:01.3]} 18... a5 {[%clk 0:02:12.4]} 19. Rhf1 {[%clk 0:01:52.5]} 19...
a4 {[%clk 0:01:53.3]} 20. Bg1 {[%clk 0:01:39.3]} 20... Bb7 {[%clk 0:01:49.2]}
21. h4 {[%clk 0:01:30.8]} 21... c5 {[%clk 0:01:46.8]} 22. Qd3 {[%clk 0:01:27.6]}
22... b4 {[%clk 0:01:41.8]} 23. Qf3 {[%clk 0:01:24.8]} 23... g6 {[%clk
0:01:40.3]} 24. Qg4 {[%clk 0:01:13.3]} 24... Qxg4 {[%clk 0:01:37.9]} 0-1

[Event "*** Titled Tuesday Blitz"]
[Site "Chess.com"]
[Date "2021.04.20"]
[Round "3"]
[White "joejan"]
[Black "Gusarov91"]
[Result "0-1"]
[WhiteElo "2272"]
[BlackElo "2635"]
[TimeControl "180+1"]
[EndTime "10:24:40 PDT"]
[Termination "Gusarov91 won by resignation"]

1. e4 {[%clk 0:03:00.9]} 1... c6 {[%clk 0:02:55.9]} 2. Nc3 {[%clk 0:03:00.1]}
2... d5 {[%clk 0:02:56.2]} 3. Nf3 {[%clk 0:03:00.7]} 3... Bg4 {[%clk 0:02:55.9]}
4. h3 {[%clk 0:03:00.1]} 4... Bxf3 {[%clk 0:02:55.9]} 5. Qxf3 {[%clk 0:03:00.3]}
5... e6 {[%clk 0:02:56.6]} 6. d3 {[%clk 0:03:00]} 6... Nd7 {[%clk 0:02:56.9]} 7.
g4 {[%clk 0:02:59.1]} 7... g6 {[%clk 0:02:56.4]} 8. Bd2 {[%clk 0:02:55.4]} 8...
Bg7 {[%clk 0:02:56.9]} 9. O-O-O {[%clk 0:02:55.1]} 9... Ne7 {[%clk 0:02:57.5]}
10. Be2 {[%clk 0:02:54.6]} 10... Qb6 {[%clk 0:02:57.5]} 11. h4 {[%clk
0:02:51.2]} 11... Ne5 {[%clk 0:02:40.8]} 12. Qg3 {[%clk 0:02:50]} 12... O-O-O
{[%clk 0:02:39.8]} 13. h5 {[%clk 0:02:47.9]} 13... Rhg8 {[%clk 0:02:37.4]} 14.
Bg5 {[%clk 0:02:39.1]} 14... f6 {[%clk 0:02:35.3]} 15. Bd2 {[%clk 0:02:34]}
15... g5 {[%clk 0:02:19.5]} 16. f4 {[%clk 0:02:30.3]} 16... gxf4 {[%clk
0:02:19.7]} 17. Bxf4 {[%clk 0:02:29.9]} 17... Nf7 {[%clk 0:02:15.8]} 18. exd5
{[%clk 0:02:21.1]} 18... Nxd5 {[%clk 0:02:14.6]} 19. Nxd5 {[%clk 0:02:18.9]}
19... cxd5 {[%clk 0:02:13.9]} 20. Be3 {[%clk 0:02:16.5]} 20... Qa5 {[%clk
0:02:12.9]} 21. Kb1 {[%clk 0:02:14.5]} 21... Rd6 {[%clk 0:02:03.2]} 22. Bd2
{[%clk 0:02:02.6]} 22... Qb5 {[%clk 0:01:56.1]} 23. Bc3 {[%clk 0:01:59.3]} 23...
Rb6 {[%clk 0:01:55.7]} 24. Rhf1 {[%clk 0:01:45.1]} 24... f5 {[%clk 0:01:53.2]}
25. Qe1 {[%clk 0:01:28.9]} 25... d4 {[%clk 0:01:46.7]} 26. a4 {[%clk 0:01:18.4]}
26... Qxa4 {[%clk 0:01:41.4]} 0-1

[Event "*** Titled Tuesday Blitz"]
[Site "Chess.com"]
[Date "2021.04.20"]
[Round "3"]
[White "korkmaz16"]
[Black "beto-betun"]
[Result "1-0"]
[WhiteElo "2445"]
[BlackElo "2217"]
[TimeControl "180+1"]
[EndTime "10:24:53 PDT"]
[Termination "korkmaz16 won by resignation"]

1. e4 {[%clk 0:03:00.9]} 1... c5 {[%clk 0:02:59.1]} 2. Nc3 {[%clk 0:03:00.3]}
2... Nc6 {[%clk 0:02:58.2]} 3. f4 {[%clk 0:03:00.3]} 3... g6 {[%clk 0:02:58.1]}
4. Nf3 {[%clk 0:03:00.5]} 4... Bg7 {[%clk 0:02:58.2]} 5. Bb5 {[%clk 0:03:01]}
5... e6 {[%clk 0:02:55.4]} 6. Bxc6 {[%clk 0:02:55.8]} 6... bxc6 {[%clk
0:02:56.3]} 7. O-O {[%clk 0:02:55.6]} 7... Ne7 {[%clk 0:02:54.7]} 8. d3 {[%clk
0:02:55.8]} 8... O-O {[%clk 0:02:54.5]} 9. Qe1 {[%clk 0:02:55.8]} 9... d5 {[%clk
0:02:53.7]} 10. f5 {[%clk 0:02:54.8]} 10... exf5 {[%clk 0:02:50.7]} 11. e5
{[%clk 0:02:53.3]} 11... d4 {[%clk 0:02:36.5]} 12. Na4 {[%clk 0:02:49.5]} 12...
Qd5 {[%clk 0:02:07.4]} 13. Qh4 {[%clk 0:02:46.1]} 13... Re8 {[%clk 0:01:53.1]}
14. Bg5 {[%clk 0:02:36.6]} 14... h6 {[%clk 0:01:14]} 15. Bxh6 {[%clk 0:02:25.7]}
15... f4 {[%clk 0:00:46.3]} 16. Bxg7 {[%clk 0:02:17.6]} 16... Kxg7 {[%clk
0:00:46.8]} 17. Qf6+ {[%clk 0:02:12]} 17... Kg8 {[%clk 0:00:41.9]} 18. Ng5
{[%clk 0:01:59.6]} 18... Nf5 {[%clk 0:00:31.4]} 19. Rxf4 {[%clk 0:01:59.1]}
19... Re6 {[%clk 0:00:21.5]} 20. Qxf7+ {[%clk 0:01:58.3]} 1-0

[Event "*** Titled Tuesday Blitz"]
[Site "Chess.com"]
[Date "2021.04.20"]
[Round "3"]
[White "Skat2704"]
[Black "amintabatabaei"]
[Result "0-1"]
[WhiteElo "2667"]
[BlackElo "2985"]
[TimeControl "180+1"]
[EndTime "10:24:56 PDT"]
[Termination "amintabatabaei won by resignation"]

1. d4 {[%clk 0:03:00.9]} 1... Nf6 {[%clk 0:02:59.3]} 2. c4 {[%clk 0:03:00.3]}
2... g6 {[%clk 0:02:58.6]} 3. Nf3 {[%clk 0:02:59.7]} 3... c5 {[%clk 0:02:56.5]}
4. d5 {[%clk 0:02:59.3]} 4... b5 {[%clk 0:02:56.8]} 5. cxb5 {[%clk 0:02:58.9]}
5... a6 {[%clk 0:02:57.4]} 6. bxa6 {[%clk 0:02:59.6]} 6... Bg7 {[%clk
0:02:54.2]} 7. Nc3 {[%clk 0:03:00]} 7... O-O {[%clk 0:02:53.8]} 8. g3 {[%clk
0:03:00.5]} 8... d6 {[%clk 0:02:50.9]} 9. Bg2 {[%clk 0:03:01]} 9... Nxa6 {[%clk
0:02:50.3]} 10. O-O {[%clk 0:02:59.1]} 10... Bf5 {[%clk 0:02:50.6]} 11. Nd2
{[%clk 0:02:44.2]} 11... Nb4 {[%clk 0:02:48.4]} 12. e4 {[%clk 0:02:41]} 12...
Bg4 {[%clk 0:02:46.5]} 13. f3 {[%clk 0:02:37]} 13... Bc8 {[%clk 0:02:45.2]} 14.
Nc4 {[%clk 0:01:56]} 14... Ba6 {[%clk 0:02:40.8]} 15. Qe2 {[%clk 0:01:52.5]}
15... Nd7 {[%clk 0:02:38.9]} 16. Nd1 {[%clk 0:01:45.8]} 16... Nb6 {[%clk
0:02:22.3]} 17. Nde3 {[%clk 0:01:44]} 17... Bd4 {[%clk 0:02:22.9]} 18. Kh1
{[%clk 0:01:00.4]} 18... Bxe3 {[%clk 0:02:20]} 19. Qxe3 {[%clk 0:00:53.5]} 19...
Nxc4 {[%clk 0:02:16.3]} 20. Qc3 {[%clk 0:00:47.1]} 20... Ne5 {[%clk 0:02:06.1]}
21. Bh6 {[%clk 0:00:35.8]} 21... Nxa2 {[%clk 0:01:53.7]} 0-1

[Event "*** Titled Tuesday Blitz"]
[Site "Chess.com"]
[Date "2021.04.20"]
[Round "3"]
[White "canary2016"]
[Black "AEMEffi"]
[Result "0-1"]
[WhiteElo "1998"]
[BlackElo "2317"]
[TimeControl "180+1"]
[EndTime "10:25:12 PDT"]
[Termination "AEMEffi won by checkmate"]

1. d4 {[%clk 0:03:00.9]} 1... Nf6 {[%clk 0:02:57.7]} 2. c4 {[%clk 0:03:00.6]}
2... g6 {[%clk 0:02:58.3]} 3. Nf3 {[%clk 0:02:59.1]} 3... Bg7 {[%clk 0:02:56.5]}
4. g3 {[%clk 0:02:59.5]} 4... c6 {[%clk 0:02:55.1]} 5. Bg2 {[%clk 0:02:59.4]}
5... d5 {[%clk 0:02:54.3]} 6. O-O {[%clk 0:02:58.8]} 6... O-O {[%clk 0:02:52.6]}
7. b3 {[%clk 0:02:58.1]} 7... a5 {[%clk 0:02:49.2]} 8. Nc3 {[%clk 0:02:54.9]}
8... Na6 {[%clk 0:02:34.3]} 9. Bb2 {[%clk 0:02:51.4]} 9... Bf5 {[%clk
0:02:27.2]} 10. Nh4 {[%clk 0:02:41.7]} 10... Be6 {[%clk 0:02:23.1]} 11. cxd5
{[%clk 0:02:29.4]} 11... Nxd5 {[%clk 0:02:15.7]} 12. e3 {[%clk 0:02:25.7]} 12...
Nxc3 {[%clk 0:02:05.3]} 13. Bxc3 {[%clk 0:02:25.3]} 13... a4 {[%clk 0:02:05.7]}
14. bxa4 {[%clk 0:02:15.2]} 14... Qd6 {[%clk 0:01:55.8]} 15. Qc2 {[%clk
0:02:13.5]} 15... Nb4 {[%clk 0:01:50.1]} 16. Bxb4 {[%clk 0:02:04.8]} 16... Qxb4
{[%clk 0:01:51]} 17. Rfb1 {[%clk 0:02:02.3]} 17... Qa3 {[%clk 0:01:41.9]} 18.
Rxb7 {[%clk 0:01:55.5]} 18... Rxa4 {[%clk 0:01:42.4]} 19. Bxc6 {[%clk 0:01:50]}
19... Rc4 {[%clk 0:01:42.2]} 20. Qe4 {[%clk 0:01:46.6]} 20... Bh3 {[%clk
0:00:49.5]} 21. Bd5 {[%clk 0:01:22.2]} 21... Rc1+ {[%clk 0:00:41.7]} 22. Rxc1
{[%clk 0:01:15.6]} 22... Qxc1# {[%clk 0:00:42.6]} 0-1

[Event "*** Titled Tuesday Blitz"]
[Site "Chess.com"]
[Date "2021.04.20"]
[Round "3"]
[White "DamianoLew95"]
[Black "Phenix2k"]
[Result "1-0"]
[WhiteElo "2506"]
[BlackElo "2257"]
[TimeControl "180+1"]
[EndTime "10:25:16 PDT"]
[Termination "DamianoLew95 won by resignation"]

1. d4 {[%clk 0:03:00.9]} 1... Nf6 {[%clk 0:02:57.9]} 2. Bf4 {[%clk 0:02:58.2]}
2... d5 {[%clk 0:02:56.6]} 3. e3 {[%clk 0:02:58]} 3... e6 {[%clk 0:02:55.9]} 4.
h3 {[%clk 0:02:54.8]} 4... Bd6 {[%clk 0:02:54.3]} 5. Bxd6 {[%clk 0:02:53.5]}
5... Qxd6 {[%clk 0:02:52.9]} 6. Nf3 {[%clk 0:02:53.6]} 6... O-O {[%clk
0:02:50.8]} 7. c3 {[%clk 0:02:53.4]} 7... c5 {[%clk 0:02:50.1]} 8. Nbd2 {[%clk
0:02:52.8]} 8... Nbd7 {[%clk 0:02:45.2]} 9. Bd3 {[%clk 0:02:52.3]} 9... e5
{[%clk 0:02:44.3]} 10. dxe5 {[%clk 0:02:50.3]} 10... Nxe5 {[%clk 0:02:44.4]} 11.
Nxe5 {[%clk 0:02:51.2]} 11... Qxe5 {[%clk 0:02:44.9]} 12. O-O {[%clk 0:02:50.3]}
12... Rb8 {[%clk 0:02:26.8]} 13. Qf3 {[%clk 0:02:46.5]} 13... b5 {[%clk
0:02:23.1]} 14. Rab1 {[%clk 0:02:39]} 14... a5 {[%clk 0:02:14.2]} 15. Rfd1
{[%clk 0:02:34.1]} 15... h6 {[%clk 0:01:48.9]} 16. Bc2 {[%clk 0:02:31.3]} 16...
Bb7 {[%clk 0:01:44.8]} 17. Qf4 {[%clk 0:02:23.6]} 17... Qxf4 {[%clk 0:01:42.7]}
18. exf4 {[%clk 0:02:24.5]} 18... Rfe8 {[%clk 0:01:36.3]} 19. Nb3 {[%clk
0:02:20.6]} 19... c4 {[%clk 0:01:26.6]} 20. Nxa5 {[%clk 0:02:19.8]} 20... Ba8
{[%clk 0:01:25.5]} 21. Rd2 {[%clk 0:02:12.2]} 21... Re7 {[%clk 0:01:13.9]} 22.
b4 {[%clk 0:02:06.3]} 22... Rbe8 {[%clk 0:01:07.3]} 23. Kf1 {[%clk 0:01:58]}
23... g6 {[%clk 0:00:57.9]} 24. a4 {[%clk 0:01:55.2]} 24... Rb8 {[%clk
0:00:42.4]} 25. axb5 {[%clk 0:01:49.7]} 25... Rxb5 {[%clk 0:00:40.1]} 26. Re1
{[%clk 0:01:47.2]} 26... Ne4 {[%clk 0:00:31.4]} 27. Bxe4 {[%clk 0:01:41.8]} 1-0

[Event "*** Titled Tuesday Blitz"]
[Site "Chess.com"]
[Date "2021.04.20"]
[Round "3"]
[White "Komiagina_Maria"]
[Black "Das_Virus_2020"]
[Result "0-1"]
[WhiteElo "2235"]
[BlackElo "2482"]
[TimeControl "180+1"]
[EndTime "10:25:19 PDT"]
[Termination "Das_Virus_2020 won by resignation"]

1. e4 {[%clk 0:03:00.9]} 1... e6 {[%clk 0:02:59.9]} 2. d4 {[%clk 0:03:00.2]}
2... d5 {[%clk 0:03:00.4]} 3. exd5 {[%clk 0:02:57.8]} 3... exd5 {[%clk
0:03:01.3]} 4. Nf3 {[%clk 0:02:57.3]} 4... Nf6 {[%clk 0:03:01.2]} 5. Bd3 {[%clk
0:02:53.5]} 5... Bd6 {[%clk 0:03:00.9]} 6. h3 {[%clk 0:02:51.4]} 6... Be6 {[%clk
0:02:49.8]} 7. O-O {[%clk 0:02:43.7]} 7... Nc6 {[%clk 0:02:49.4]} 8. c3 {[%clk
0:02:40.9]} 8... Qd7 {[%clk 0:02:47.9]} 9. Ng5 {[%clk 0:02:36.5]} 9... O-O-O
{[%clk 0:02:43.8]} 10. Nxe6 {[%clk 0:02:35.7]} 10... fxe6 {[%clk 0:02:39.5]} 11.
f4 {[%clk 0:02:25.3]} 11... Rdf8 {[%clk 0:02:38.7]} 12. Qe2 {[%clk 0:02:15.1]}
12... g6 {[%clk 0:02:30.8]} 13. Na3 {[%clk 0:01:27.4]} 13... Nh5 {[%clk
0:02:29.8]} 14. Qg4 {[%clk 0:01:24.9]} 14... Ne7 {[%clk 0:02:04.9]} 15. Nb5
{[%clk 0:01:13.9]} 15... Nf5 {[%clk 0:02:03]} 16. Bd2 {[%clk 0:01:05.2]} 16...
a6 {[%clk 0:01:58.8]} 17. Nxd6+ {[%clk 0:00:59.4]} 17... Nxd6 {[%clk 0:01:59.7]}
18. Rae1 {[%clk 0:00:55.7]} 18... Re8 {[%clk 0:01:57.2]} 19. Rf3 {[%clk
0:00:42.2]} 19... Nf6 {[%clk 0:01:56.7]} 20. Qh4 {[%clk 0:00:35]} 20... Nfe4
{[%clk 0:01:53.8]} 21. Bc1 {[%clk 0:00:31.7]} 21... Nf5 {[%clk 0:01:48.5]} 22.
Qg4 {[%clk 0:00:19.1]} 22... h5 {[%clk 0:01:47.5]} 23. Qxg6 {[%clk 0:00:17.1]}
23... Reg8 {[%clk 0:01:46.9]} 0-1